bitfinex-derivatives/quotes_BTCF0:USTF0_20250318
["timestamp","ask_amount","ask_price","bid_price","bid_amount"]
[1742315841507,0.121802,82107.0,82104.0,0.1218059]
[1742315841707,0.2177035,82106.0,82105.0,0.17148612]
[1742315841908,0.2177035,82106.0,82105.0,0.21978612]
[1742315842514,0.2177035,82106.0,82105.0,0.26554807]
[1742315843022,0.2177035,82106.0,82105.0,0.26654807]
[1742315843519,0.2177035,82106.0,82105.0,0.22078612]
[1742315844303,0.2177035,82106.0,82105.0,0.05168262]
[1742315844504,0.3177035,82106.0,82105.0,2e-08]
[1742315844716,0.2023,82101.0,82074.0,0.1725502]
[1742315845021,0.1218495,82075.0,82074.0,0.2334746]
[1742315845317,0.1218495,82075.0,82074.0,0.1116244]
[1742315845621,0.0984,82076.0,82075.0,0.1218495]
[1742315846121,0.0984,82076.0,82075.0,0.2201495]
[1742315846504,0.220248,82076.0,82075.0,0.2201495]
[1742315847915,0.220248,82076.0,82075.0,0.2211495]
[1742315848314,0.220248,82076.0,82075.0,0.2201495]
[1742315848514,0.220248,82076.0,82075.0,0.2221495]
[1742315849319,0.0984,82076.0,82075.0,0.2211495]
[1742315850626,0.0984,82076.0,82075.0,0.2201495]
[1742315850826,0.0984,82076.0,82075.0,0.2211495]
[1742315851324,0.0984,82076.0,82075.0,0.2201495]
[1742315854821,0.0984,82076.0,82075.0,0.1692495]
[1742315855020,0.220248,82076.0,82075.0,0.1692495]
[1742315855222,0.220248,82076.0,82074.0,0.00894793]
[1742315855223,0.1218495,82075.0,82074.0,0.00894793]
[1742315855433,0.121851,82074.0,82073.0,0.05903078]
[1742315855729,0.219551,82074.0,82073.0,0.1218524]
[1742315856522,0.1218539,82072.0,82070.0,0.3608]
[1742315856825,0.2195554,82071.0,82070.0,0.3608]
[1742315857223,0.2195554,82071.0,82064.0,0.17396]
[1742315857224,0.1218628,82066.0,82064.0,0.1852923]
[1742315857525,0.1218643,82065.0,82064.0,0.05758705]
[1742315857823,0.1218688,82062.0,82061.0,0.1725698]
[1742315858731,0.1218688,82062.0,82061.0,0.24086709]
[1742315859114,0.1218688,82062.0,82061.0,0.05936378]
[1742315859428,0.1218781,82059.0,82058.0,0.1218689]
[1742315859626,0.1818154,82059.0,82058.0,0.1218689]
[1742315859925,0.0517,82065.0,82064.0,0.1218658]
[1742315860226,0.001,82065.0,82064.0,0.1218658]
[1742315860430,0.001,82065.0,82064.0,0.2198658]
[1742315860634,0.00018273,82067.0,82066.0,0.1218628]
[1742315860816,0.00018273,82067.0,82066.0,0.4826628]
[1742315861016,0.00018273,82067.0,82066.0,0.5299628]
[1742315861231,0.12204413,82067.0,82066.0,0.4826628]
[1742315861423,0.12204413,82067.0,82066.0,0.5806628]
[1742315861622,0.12204413,82067.0,82066.0,0.3608]
[1742315861928,0.12204413,82067.0,82062.0,0.0609336]
[1742315861929,0.0609337,82063.0,82062.0,0.0609336]
[1742315862429,0.1828025,82066.0,82065.0,0.1218628]
[1742315862732,0.1828025,82066.0,82060.0,0.0473]
[1742315862733,0.1218703,82061.0,82060.0,0.1691685]
[1742315862927,0.1218732,82059.0,82058.0,0.24047764]
[1742315863126,0.1218762,82057.0,82056.0,0.1218777]
[1742315863521,0.1208762,82057.0,82056.0,0.17874476]
[1742315864242,0.1198762,82057.0,82056.0,0.17874476]
[1742315864426,0.1198762,82057.0,82056.0,0.05686706]
[1742315864731,0.1828181,82056.0,82055.0,0.1218787]
[1742315865515,0.0479,82063.0,82062.0,0.1218688]
[1742315866125,0.0479,82063.0,82062.0,0.1695688]
[1742315866333,0.00018273,82067.0,82066.0,0.1218628]
[1742315866727,0.00018273,82067.0,82066.0,0.2178628]
[1742315868548,0.12204413,82067.0,82066.0,0.2178628]
[1742315868837,0.1218687,82063.0,82062.0,0.1828016]
[1742315869228,0.1697687,82063.0,82062.0,0.1828016]
[1742315869425,0.1697687,82063.0,82062.0,0.2788016]
[1742315870433,0.1687687,82063.0,82062.0,0.2788016]
[1742315871138,0.1687687,82063.0,82062.0,0.2322016]
[1742315871637,0.1687687,82063.0,82062.0,0.001]
[1742315872248,0.22642246,82063.0,82062.0,0.00022251]
[1742315872532,0.22642246,82063.0,82062.0,0.00122251]
[1742315872928,0.1687687,82063.0,82062.0,0.00105381]
[1742315873121,0.1687687,82063.0,82062.0,5.381e-05]
[1742315873322,0.1707687,82063.0,82062.0,0.12192261]
[1742315873930,0.2214687,82063.0,82062.0,0.001]
[1742315874536,0.1218747,82058.0,82057.0,0.00010139]
[1742315874723,0.14734784,82058.0,82057.0,0.00010139]
[1742315874928,0.31804784,82058.0,82057.0,0.00010139]
[1742315875134,0.1218886,82050.0,82049.0,0.1218809]
[1742315876140,0.1218886,82050.0,82049.0,0.17860099]
[1742315876840,0.1828359,82048.0,82047.0,0.1218897]
[1742315877241,0.0609463,82046.0,82045.0,0.121894]
[1742315877446,0.1828448,82044.0,82043.0,0.1218967]
[1742315877741,0.0609485,82043.0,82039.0,0.36148]
[1742315877942,0.1219133,82032.0,82031.0,0.1219098]
[1742315878245,0.1219133,82032.0,82024.0,0.70892801]
[1742315878246,0.182876,82030.0,82029.0,0.2374736]
[1742315878548,0.182876,82030.0,82029.0,0.29442022]
[1742315878842,0.182876,82030.0,82029.0,0.34532022]
[1742315879026,0.285276,82030.0,82029.0,0.34532022]
[1742315879641,0.285276,82030.0,82029.0,0.35032022]
[1742315880039,0.1633582,82030.0,82029.0,0.35032022]
[1742315880430,0.1633582,82030.0,82029.0,0.05794662]
[1742315880634,0.1623582,82030.0,82029.0,0.05794662]
[1742315881140,0.1623582,82030.0,82029.0,0.001]
[1742315881348,0.1623582,82030.0,82029.0,0.1239178]
[1742315881752,0.1623582,82030.0,82029.0,0.001]
[1742315882042,0.1219178,82029.0,82027.0,0.1719207]
[1742315882344,0.1199193,82028.0,82027.0,0.2254207]
[1742315882546,0.1199193,82028.0,82027.0,0.1035]
[1742315882547,0.2244193,82028.0,82027.0,0.1035]
[1742315882749,0.1219238,82025.0,82024.0,0.0587066]
[1742315882948,0.1045,82028.0,82027.0,0.1219208]
[1742315883137,0.0501,82028.0,82027.0,0.1219208]
[1742315883333,0.1720193,82028.0,82027.0,0.1219208]
[1742315883547,0.1720193,82028.0,82027.0,0.2254208]
[1742315885732,0.1720193,82028.0,82027.0,0.2264208]
[1742315886331,0.1720193,82028.0,82027.0,0.2254208]
[1742315888450,0.1720193,82028.0,82027.0,0.05]
[1742315888647,0.1219223,82026.0,82025.0,0.2438452]
[1742315888847,0.0501,82028.0,82027.0,0.1219208]
[1742315889052,0.1738163,82031.0,82030.0,0.1219163]
[1742315889449,0.1738163,82031.0,82030.0,0.1735163]
[1742315889645,0.2247163,82031.0,82030.0,0.1735163]
[1742315889851,0.1028,82031.0,82030.0,0.1735163]
[1742315890052,0.1219016,82040.0,82039.0,0.0609514]
[1742315890345,0.1219016,82040.0,82033.0,0.0609552]
[1742315890346,0.1219089,82035.0,82034.0,0.1219067]
[1742315891143,0.1761089,82035.0,82034.0,0.1219067]
[1742315891748,0.0542,82035.0,82034.0,0.1219067]
[1742315892749,0.1771089,82035.0,82034.0,0.1219067]
[1742315892951,0.1828738,82031.0,82030.0,0.1828696]
[1742315894359,0.0546,82031.0,82030.0,0.1838696]
[1742315895549,0.0499,82032.0,82031.0,0.1219148]
[1742315895750,0.0546,82034.0,82033.0,0.1219119]
[1742315895955,0.2438057,82041.0,82040.0,0.1218985]
[1742315896253,0.0609508,82040.0,82036.0,0.0609533]
[1742315896450,0.0609545,82035.0,82029.0,0.4217588]
[1742315896652,0.1828738,82032.0,82031.0,0.0609573]
[1742315897156,0.1828738,82031.0,82030.0,0.1219162]
[1742315897354,0.1828738,82031.0,82029.0,0.3608]
[1742315897355,0.1219163,82030.0,82029.0,0.3608]
[1742315897547,0.1219238,82025.0,82024.0,0.1831466]
[1742315897753,0.1209238,82025.0,82024.0,0.3050718]
[1742315898056,0.1723238,82025.0,82024.0,0.1831466]
[1742315898243,0.1723238,82025.0,82024.0,0.3050718]
[1742315898444,0.1723238,82025.0,82024.0,0.1806318]
[1742315898853,0.1723238,82025.0,82024.0,0.11199911]
[1742315899353,0.0514,82025.0,82024.0,0.11199911]
[1742315899552,0.001,82030.0,82029.0,0.1219178]
[1742315899855,0.001,82030.0,82029.0,0.4827178]
[1742315900057,0.001,82030.0,82029.0,0.5355178]
[1742315900261,0.0609558,82034.0,82033.0,0.1219119]
[1742315901258,0.0538,82035.0,82034.0,0.1219104]
[1742315901561,0.1219039,82039.0,82038.0,0.05327994]
[1742315901861,0.1219029,82040.0,82039.0,0.1219015]
[1742315902056,0.5436429,82046.0,82045.0,0.121894]
[1742315903259,0.5436429,82046.0,82045.0,0.18141059]
[1742315903662,0.5466429,82046.0,82045.0,0.18141059]
[1742315904047,0.1858429,82046.0,82045.0,0.23311059]
[1742315904747,0.1858429,82046.0,82045.0,0.173594]
[1742315904949,0.1858429,82046.0,82045.0,0.121894]
[1742315905153,0.121897,82043.0,82042.0,0.1828444]
[1742315905562,0.176297,82043.0,82042.0,0.24007189]
[1742315906059,0.0544,82043.0,82042.0,0.24007189]
[1742315906256,0.176297,82043.0,82042.0,0.24007189]
[1742315908053,0.08003731,82043.0,82042.0,0.24007189]
[1742315908260,0.08003731,82043.0,82042.0,0.24107189]
[1742315908958,0.0544,82043.0,82042.0,0.29435312]
[1742315909361,0.0544,82043.0,82042.0,0.34675312]
[1742315909863,0.0544,82043.0,82042.0,0.34575312]
[1742315910562,0.176297,82043.0,82042.0,0.05722749]
[1742315910764,0.176297,82043.0,82042.0,0.001]
[1742315910949,0.176297,82043.0,82031.0,0.1075]
[1742315910950,0.1219238,82025.0,82013.0,0.1244]
[1742315911155,0.0609772,82005.0,82001.0,0.6012777]
[1742315911368,0.121949,82009.0,82007.0,0.0609747]
[1742315911668,0.1829228,82009.0,82008.0,0.2294479]
[1742315912065,0.121958,82002.0,82001.0,0.04958113]
[1742315912273,0.121958,82002.0,82000.0,0.1]
[1742315912274,0.27034959,82002.0,82000.0,0.1]
[1742315912561,0.02643219,82001.0,82000.0,0.1609804]
[1742315912956,0.14839159,82001.0,82000.0,0.1]
[1742315913154,0.14839159,82001.0,82000.0,0.2219609]
[1742315913353,0.14839159,82001.0,82000.0,0.14973277]
[1742315913953,0.20299159,82001.0,82000.0,0.14973277]
[1742315914369,0.20299159,82001.0,82000.0,0.27169367]
[1742315914662,0.20299159,82001.0,82000.0,0.14973277]
[1742315915264,0.20299159,82001.0,82000.0,0.1]
[1742315915569,0.1219832,81985.0,81984.0,0.1743847]
[1742315916053,0.1244,81994.0,81984.0,0.1743847]
[1742315916054,0.0546,81986.0,81985.0,0.1219832]
[1742315916250,0.0546,81986.0,81985.0,0.2261832]
[1742315917163,0.12215426,81993.0,81992.0,0.1219728]
[1742315918754,0.00018296,81993.0,81992.0,0.1755728]
[1742315920170,0.00018296,81993.0,81992.0,0.3000128]
[1742315921576,0.1762505,82008.0,82007.0,0.1219505]
[1742315921969,0.1762505,82008.0,82007.0,0.1731505]
[1742315922164,0.176249,82008.0,82007.0,0.1731505]
[1742315922369,0.1219402,82016.0,82015.0,0.1219351]
[1742315922563,0.12212316,82016.0,82015.0,0.1219351]
[1742315923472,0.36098296,82016.0,81999.0,1.01122296]
[1742315923674,0.36098296,82016.0,81999.0,0.00082296]
[1742315923675,0.121958,82002.0,81999.0,0.00082296]
[1742315923879,0.3608,82003.0,81999.0,0.00018296]
[1742315923880,0.0609786,82003.0,81999.0,0.00018296]
[1742315924177,0.1219609,82000.0,81999.0,0.12214476]
[1742315924479,0.1219609,82000.0,81999.0,0.12214536]
[1742315924679,0.1219609,82000.0,81999.0,0.17028699]
[1742315924978,0.0547,82001.0,82000.0,0.1219609]
[1742315925180,0.1766594,82001.0,82000.0,0.1774609]
[1742315925575,0.1766594,82001.0,82000.0,0.1219609]
[1742315926366,0.1746594,82001.0,82000.0,0.1219609]
[1742315926562,0.1746594,82001.0,81999.0,0.04832459]
[1742315926563,0.1219609,82000.0,81999.0,0.04832459]
[1742315928278,0.1219609,82000.0,81999.0,0.17028699]
[1742315928478,0.1777609,82000.0,81999.0,0.04832459]
[1742315928673,0.1777609,82000.0,81999.0,0.17028699]
[1742315928981,0.1777609,82000.0,81999.0,0.04832459]
[1742315929573,0.2284609,82000.0,81999.0,0.04832459]
[1742315929772,0.2284609,82000.0,81999.0,0.00018296]
[1742315930679,0.2284609,82000.0,81999.0,2.683e-05]
[1742315931470,0.2314609,82000.0,81999.0,2.683e-05]
[1742315931885,0.2344609,82000.0,81999.0,0.12198923]
[1742315932775,0.2384609,82000.0,81999.0,0.12198923]
[1742315933482,0.2384609,82000.0,81999.0,0.17698923]
[1742315933682,0.2354609,82000.0,81999.0,0.17698923]
[1742315934073,0.2354609,82000.0,81999.0,0.22858923]
[1742315934686,0.1105,82000.0,81999.0,0.22858923]
[1742315935369,0.1085,82000.0,81999.0,0.22858923]
[1742315936174,0.1065,82000.0,81999.0,0.22858923]
[1742315937086,0.2284609,82000.0,81999.0,0.22858923]
[1742315938278,0.1065,82000.0,81999.0,0.22858923]
[1742315938686,0.0609702,82014.0,82003.0,0.0609781]
[1742315938885,0.0514,82005.0,82004.0,0.229755]
[1742315939179,0.1733535,82005.0,82004.0,0.229755]
[1742315939396,0.2290535,82005.0,82004.0,0.229755]
[1742315940106,0.0609798,82001.0,81999.0,2.683e-05]
[1742315940299,0.2348609,82000.0,81999.0,0.17678773]
[1742315940701,0.24629662,82000.0,81999.0,0.17678773]
[1742315941408,0.24629662,82000.0,81999.0,2.683e-05]
[1742315941997,0.24629662,82000.0,81999.0,0.12198923]
[1742315943209,0.24729662,82000.0,81999.0,0.17858923]
[1742315943710,0.24729662,82000.0,81999.0,0.23158923]
[1742315944012,0.24729662,82000.0,81999.0,2.683e-05]
[1742315944013,0.2358609,82000.0,81999.0,2.683e-05]
[1742315944400,0.2368609,82000.0,81999.0,2.683e-05]
[1742315944705,0.2358609,82000.0,81999.0,2.683e-05]
[1742315945099,0.5956609,82000.0,81999.0,2.683e-05]
[1742315945607,0.5976609,82000.0,81999.0,2.683e-05]
[1742315945808,0.60909662,82000.0,81999.0,2.683e-05]
[1742315946110,0.48713572,82000.0,81980.0,0.4159]
[1742315946313,0.0219,81990.0,81980.0,0.04841554]
[1742315946613,0.1219966,81976.0,81975.0,0.1829924]
[1742315946911,0.1219966,81976.0,81975.0,0.1121987]
[1742315947114,0.2307966,81976.0,81975.0,0.1674987]
[1742315947409,0.2307966,81976.0,81975.0,0.21589955]
[1742315947593,0.2307966,81976.0,81975.0,0.14722914]
[1742315947999,0.2845966,81976.0,81975.0,0.21392284]
[1742315948213,0.2845966,81976.0,81975.0,0.17039455]
[1742315948710,0.2845966,81976.0,81975.0,0.17139455]
[1742315949011,0.2845966,81976.0,81975.0,0.001]
[1742315949201,0.1219981,81975.0,81974.0,0.04819042]
[1742315949505,0.1220041,81971.0,81970.0,0.1220042]
[1742315949811,0.1220041,81971.0,81970.0,0.04887067]
[1742315950016,0.1220056,81970.0,81969.0,0.1220059]
[1742315950411,0.2283056,81970.0,81969.0,0.17001524]
[1742315950608,0.2283056,81970.0,81969.0,0.04800934]
[1742315950816,0.12201,81967.0,81963.0,0.18104]
[1742315951013,0.122016,81963.0,81962.0,0.00068]
[1742315951210,0.1220294,81954.0,81953.0,0.0566]
[1742315951408,0.1220398,81947.0,81946.0,0.17884]
[1742315951614,0.1220398,81947.0,81946.0,0.0544]
[1742315952120,0.1220398,81947.0,81946.0,0.1764413]
[1742315952506,0.1767398,81947.0,81946.0,0.15831025]
[1742315952706,0.1767398,81947.0,81946.0,0.28035155]
[1742315953003,0.1767398,81947.0,81946.0,0.15831025]
[1742315954610,0.0610191,81949.0,81946.0,0.28275025]
[1742315954799,0.1781398,81947.0,81946.0,0.40478935]
[1742315955203,0.1781398,81947.0,81946.0,0.28275025]
[1742315955408,0.2306398,81947.0,81946.0,0.28275025]
[1742315955617,0.2306398,81947.0,81946.0,0.15831025]
[1742315956714,0.2306398,81947.0,81946.0,0.15931025]
[1742315957018,0.2306398,81947.0,81946.0,0.11]
[1742315957416,0.2306398,81947.0,81946.0,0.1593739]
[1742315957614,0.2306398,81947.0,81946.0,0.11]
[1742315958205,0.0561,81947.0,81946.0,0.2320413]
[1742315958409,0.1220398,81947.0,81946.0,0.2320386]
[1742315958620,0.11539206,81962.0,81956.0,0.1220237]
[1742315958918,0.1220234,81958.0,81957.0,0.1043]
[1742315959306,0.1220279,81955.0,81954.0,0.3608]
[1742315959702,0.2340279,81955.0,81954.0,0.3608]
[1742315960202,0.112,81955.0,81954.0,0.4828294]
[1742315960516,0.1220279,81955.0,81954.0,0.3608]
[1742315960716,0.1220279,81955.0,81954.0,0.5871294]
[1742315961012,0.00490297,81962.0,81958.0,0.0610116]
[1742315961211,0.00318296,81962.0,81961.0,0.482819]
[1742315961412,0.1220064,81970.0,81969.0,0.0610035]
[1742315961623,0.1220071,81969.0,81968.0,0.5922085]
[1742315961803,0.2337071,81969.0,81968.0,0.64050411]
[1742315962006,0.1788071,81969.0,81968.0,0.64050411]
[1742315962200,0.121996,81977.0,81971.0,0.1220026]
[1742315962410,0.0568,81979.0,81978.0,0.1219937]
[1742315962803,0.0568,81979.0,81978.0,0.2313937]
[1742315963005,0.00018296,81982.0,81979.0,0.060996]
[1742315963207,0.00018296,81982.0,81981.0,0.1219892]
[1742315963422,0.00018296,81982.0,81981.0,0.2464292]
[1742315963715,0.00018296,81982.0,81981.0,0.3558292]
[1742315964712,0.12217066,81982.0,81981.0,0.7166292]
[1742315965016,0.36252001,81996.0,81993.0,0.1829533]
[1742315965209,0.1053,81995.0,81994.0,0.1219699]
[1742315965414,0.1053,81995.0,81994.0,0.1781699]
[1742315965616,0.2272684,81995.0,81994.0,0.1781699]
[1742315965919,0.1053,81995.0,81994.0,0.1781699]
[1742315966114,0.0524,81995.0,81994.0,0.1781699]
[1742315966314,0.182947,81999.0,81998.0,0.1219639]
[1742315966706,0.1219598,82001.0,82000.0,0.1219594]
[1742315966906,0.1053,82002.0,82001.0,0.1219594]
[1742315967116,0.0529,82002.0,82001.0,0.1219594]
[1742315967318,0.174858,82002.0,82001.0,0.1219594]
[1742315968013,0.1219624,81999.0,81998.0,0.41006591]
[1742315968213,0.1219624,81999.0,81998.0,0.3608]
[1742315971211,0.1219624,81999.0,81998.0,0.29214498]
[1742315971623,0.1249624,81999.0,81998.0,0.29214498]
[1742315972124,0.1299624,81999.0,81998.0,0.29314498]
[1742315972324,0.1319624,81999.0,81998.0,0.29314498]
[1742315973425,0.3563624,81999.0,81998.0,0.29314498]
[1742315973622,0.3563624,81999.0,81998.0,0.29214498]
[1742315973820,0.4083624,81999.0,81998.0,0.29214498]
[1742315974015,0.3083624,81999.0,81998.0,0.29214498]
[1742315974628,0.34927152,81999.0,81998.0,0.29214498]
[1742315975021,0.1219803,81987.0,81986.0,6e-08]
[1742315975323,0.1219803,81987.0,81961.0,0.4159]
[1742315975324,0.1220115,81966.0,81965.0,0.1244]
[1742315975526,0.1220097,81971.0,81970.0,0.0610015]
[1742315975728,0.0609983,81976.0,81970.0,0.0610015]
[1742315975729,0.1220022,81973.0,81972.0,0.1830001]
[1742315976317,0.1766022,81973.0,81972.0,0.1830001]
[1742315977929,0.1776022,81973.0,81972.0,0.1830001]
[1742315978115,0.001,81973.0,81972.0,0.1830001]
[1742315978315,0.01144588,81980.0,81979.0,0.1219922]
[1742315978520,0.01144588,81980.0,81979.0,0.2970922]
[1742315978731,0.13343658,81980.0,81979.0,0.2970922]
[1742315979129,0.1219907,81980.0,81979.0,0.2970922]
[1742315979528,0.1219907,81980.0,81978.0,0.3608]
[1742315979529,0.1219922,81979.0,81978.0,0.3608]
[1742315979718,0.1767922,81979.0,81978.0,0.3608]
[1742315980329,0.1767922,81979.0,81978.0,0.4133]
[1742315981726,0.1777922,81979.0,81978.0,0.4133]
[1742315981931,0.1777922,81979.0,81978.0,0.5352937]
[1742315982528,0.00018296,81981.0,81978.0,0.5352937]
[1742315982529,0.00018296,81981.0,81980.0,0.1219907]
[1742315982925,0.00018296,81981.0,81980.0,0.2251907]
[1742315983122,0.1829693,81990.0,81986.0,0.0609906]
[1742315983328,0.1725773,81989.0,81988.0,0.1829682]
[1742315983524,0.1145852,81994.0,81988.0,0.0518]
[1742315983729,0.11834372,81995.0,81994.0,0.1219699]
[1742315984036,0.29091212,81995.0,81994.0,0.2463699]
[1742315984233,0.34231212,81995.0,81994.0,0.2463699]
[1742315984437,0.34231212,81995.0,81994.0,0.3518699]
[1742315984737,0.2239684,81995.0,81994.0,0.3518699]
[1742315985136,0.2279684,81995.0,81994.0,0.3518699]
[1742315985733,0.2319684,81995.0,81994.0,0.3518699]
[1742315987536,0.11,81995.0,81994.0,0.3518699]
[1742315987847,0.2319684,81995.0,81994.0,0.2299]
[1742315988031,0.2319684,81995.0,81994.0,0.2981699]
[1742315988941,0.1829592,81992.0,81991.0,0.2463728]
[1742315989344,0.2918592,81992.0,81991.0,0.2463728]
[1742315989841,0.2918592,81992.0,81991.0,0.1244]
[1742315990435,0.1219803,81987.0,81986.0,0.00018296]
[1742315990639,0.1219803,81987.0,81986.0,0.12458296]
[1742315990841,0.2866803,81987.0,81986.0,0.12458296]
[1742315991034,0.2866803,81987.0,81986.0,0.00018296]
[1742315991732,0.2876803,81987.0,81986.0,0.00018296]
[1742315992037,0.2876803,81987.0,81986.0,0.12216476]
[1742315992233,0.2876803,81987.0,81986.0,0.00018296]
[1742315992738,0.2896803,81987.0,81986.0,0.12216476]
[1742315992938,0.1677,81987.0,81986.0,0.17366476]
[1742315993128,0.1119,81987.0,81986.0,0.22976476]
[1742315993536,0.2318803,81987.0,81986.0,0.22976476]
[1742315993735,0.2318803,81987.0,81986.0,0.1076]
[1742315993736,0.26583633,81987.0,81986.0,0.1076]
[1742315993932,0.26583633,81987.0,81986.0,0.2295818]
[1742315994540,0.26483633,81987.0,81986.0,0.2295818]
[1742315995139,0.26283633,81987.0,81986.0,0.2295818]
[1742315995434,0.26483633,81987.0,81986.0,0.2295818]
[1742315997043,0.26483633,81987.0,81986.0,0.1076]
[1742315997237,0.26483633,81987.0,81986.0,0.2295818]
[1742315997738,0.26483633,81987.0,81986.0,0.1076]
[1742315998138,0.26483633,81987.0,81986.0,0.2295818]
[1742315998336,0.26483633,81987.0,81986.0,0.0515]
[1742315998636,0.1219818,81986.0,81985.0,0.34723972]
[1742315998828,0.15293783,81986.0,81985.0,0.46922292]
[1742315999024,0.25883783,81986.0,81985.0,0.46922292]
[1742315999233,0.15293783,81986.0,81985.0,0.46922292]
[1742315999535,0.03095603,81986.0,81985.0,0.46922292]
[1742315999725,0.15293783,81986.0,81985.0,0.46922292]
[1742315999931,0.15493783,81986.0,81985.0,0.46922292]
[1742316000539,0.03295603,81986.0,81985.0,0.1219832]
[1742316000742,0.15493783,81986.0,81985.0,0.1219832]
[1742316000941,0.03295603,81986.0,81985.0,0.1219832]
[1742316001144,0.03295603,81986.0,81985.0,0.4827832]
[1742316002133,0.002,81986.0,81985.0,0.4827832]
[1742316002937,0.03295603,81986.0,81985.0,0.4827832]
[1742316003134,0.08655603,81986.0,81985.0,0.4827832]
[1742316003843,0.20853783,81986.0,81985.0,0.41412537]
[1742316004053,0.08655603,81986.0,81985.0,0.41412537]
[1742316004542,0.26243783,81986.0,81985.0,0.41412537]
[1742316004743,0.14045603,81986.0,81985.0,0.41412537]
[1742316005852,0.1219892,81981.0,81978.0,0.34742268]
[1742316006042,0.15294523,81981.0,81978.0,0.34742268]
[1742316006246,0.31654523,81981.0,81978.0,0.34742268]
[1742316006442,0.31654523,81981.0,81978.0,0.00018296]
[1742316007336,0.31654523,81981.0,81978.0,0.12217656]
[1742316007548,0.31654523,81981.0,81858.0,0.00212374]
[1742316007549,0.0610065,81966.0,81962.0,0.88612]
[1742316007851,0.122016,81963.0,81962.0,0.88612]
[1742316008146,0.02989441,81963.0,81962.0,1.132496]
[1742316008336,0.02989441,81963.0,81962.0,1.1744498]
[1742316009134,0.02989441,81963.0,81962.0,1.1057752]
[1742316009950,0.02989441,81963.0,81962.0,1.1127752]
[1742316010448,0.02989441,81968.0,81967.0,0.12201]
[1742316011058,0.02989441,81970.0,81969.0,0.1220071]
[1742316011354,0.02989441,81970.0,81969.0,0.2463671]
[1742316011546,0.00018296,81971.0,81970.0,0.1220056]
[1742316012453,0.16352633,81990.0,81989.0,0.1219773]
[1742316012750,0.04155053,81990.0,81989.0,0.1219773]
[1742316012945,0.1219748,81991.0,81990.0,0.1219758]
[1742316014155,0.1219748,81991.0,81990.0,0.1722758]
[1742316015252,0.1249748,81991.0,81990.0,0.22380951]
[1742316015556,0.1249748,81991.0,81990.0,0.13128921]
[1742316015759,0.1249748,81991.0,81990.0,0.00931341]
[1742316015959,0.1219862,81983.0,81982.0,0.94737586]
[1742316016150,0.1219862,81983.0,81982.0,0.88638296]
[1742316016651,0.1219862,81983.0,81982.0,1.0489311]
[1742316017538,0.1219862,81983.0,81982.0,0.88638296]
[1742316017745,0.1229862,81983.0,81982.0,0.88638296]
[1742316017945,0.1229862,81983.0,81982.0,1.00837066]
[1742316018453,0.1239862,81983.0,81982.0,1.00837066]
[1742316018653,0.1785862,81983.0,81982.0,1.00837066]
[1742316018867,0.5393862,81983.0,81982.0,1.00837066]
[1742316019451,0.4174,81983.0,81972.0,0.12436]
[1742316019654,0.1220056,81970.0,81969.0,0.1220057]
[1742316020245,0.1220085,81968.0,81967.0,0.00244]
[1742316020451,0.1220324,81952.0,81951.0,0.2364402]
[1742316020743,0.1200324,81952.0,81951.0,0.2463938]
[1742316021358,0.2267324,81952.0,81951.0,0.2463938]
[1742316022854,0.2227324,81952.0,81951.0,0.1220338]
[1742316023254,0.1220353,81950.0,81949.0,0.1220356]
[1742316023756,0.1170353,81950.0,81949.0,0.1220356]
[1742316024055,0.1625353,81950.0,81949.0,0.1220356]
[1742316024254,0.2156353,81950.0,81949.0,0.1220356]
[1742316024456,0.2156353,81950.0,81949.0,0.1270356]
[1742316024843,0.2156353,81950.0,81949.0,0.1820356]
[1742316025047,0.2156353,81950.0,81949.0,0.01904293]
[1742316025458,0.2156353,81950.0,81949.0,0.14107973]
[1742316025757,0.2156353,81950.0,81949.0,0.01904293]
[1742316026062,0.2156353,81950.0,81949.0,0.14107973]
[1742316026559,0.2156353,81950.0,81949.0,0.13607973]
[1742316027357,0.2176353,81950.0,81949.0,0.00904293]
[1742316027661,0.1220368,81949.0,81948.0,0.88616]
[1742316027959,0.1220368,81949.0,81948.0,1.0081983]
[1742316028166,0.1105,81949.0,81948.0,1.01721651]
[1742316028358,0.1105,81949.0,81948.0,1.12141651]
[1742316028957,0.2325368,81949.0,81948.0,1.12141651]
[1742316029867,0.2345368,81949.0,81948.0,1.01721651]
[1742316030365,0.2355368,81949.0,81948.0,1.01721651]
[1742316030663,0.2345368,81949.0,81948.0,1.01721651]
[1742316031264,0.2325368,81949.0,81948.0,1.01721651]
[1742316031762,0.2335368,81949.0,81948.0,1.01721651]
[1742316032956,0.2345368,81949.0,81948.0,1.01721651]
[1742316033156,0.2335368,81949.0,81948.0,1.01721651]
[1742316034170,0.2345368,81949.0,81948.0,1.01721651]
[1742316034356,0.2345368,81949.0,81948.0,1.0081983]
[1742316034754,0.2355368,81949.0,81948.0,1.0081983]
[1742316035972,0.2355368,81949.0,81948.0,0.88616]
[1742316036162,0.5953368,81949.0,81948.0,0.88616]
[1742316036566,0.5953368,81949.0,81948.0,1.0081983]
[1742316036762,0.1220428,81945.0,81944.0,0.00933144]
[1742316036961,0.1220577,81935.0,81934.0,0.17576]
[1742316037161,0.1220577,81935.0,81934.0,0.12436]
[1742316037362,0.1220577,81935.0,81934.0,0.28208459]
[1742316037569,0.2230577,81935.0,81934.0,0.28208459]
[1742316037964,0.2230577,81935.0,81934.0,0.33348459]
[1742316038175,0.101,81935.0,81934.0,0.3437336]
[1742316038367,0.1853806,81947.0,81942.0,0.1220473]
[1742316038568,0.001,81949.0,81942.0,0.1220473]
[1742316038569,0.1057,81946.0,81942.0,0.1220473]
[1742316038763,0.1057,81946.0,81942.0,0.2978073]
[1742316038958,0.1057,81946.0,81942.0,0.6586073]
[1742316039170,0.001,81949.0,81942.0,0.1734473]
[1742316039476,0.02848375,81964.0,81952.0,0.1220324]
[1742316039477,0.0552,81953.0,81952.0,0.1220324]
[1742316039679,0.0552,81953.0,81952.0,0.2977924]
[1742316039863,0.0552,81953.0,81952.0,0.3520924]
[1742316040585,0.101,81955.0,81954.0,0.1220294]
[1742316040979,0.00018296,81961.0,81954.0,0.1075]
[1742316041164,0.36543802,81967.0,81966.0,0.1220115]
[1742316041369,0.2878015,81974.0,81973.0,0.1220011]
[1742316041568,0.1658004,81974.0,81973.0,0.1752011]
[1742316041875,0.1658004,81974.0,81973.0,0.2295011]
[1742316042677,0.0610013,81972.0,81966.0,0.12436]
[1742316042875,0.0504,81971.0,81969.0,0.0610035]
[1742316043075,0.0504,81971.0,81970.0,0.2267056]
[1742316043582,0.1724041,81971.0,81970.0,0.2267056]
[1742316043777,0.1724041,81971.0,81970.0,0.0513]
[1742316043977,0.12201,81967.0,81966.0,0.0534]
[1742316044179,0.12201,81967.0,81966.0,0.26552358]
[1742316044375,0.22361,81967.0,81966.0,0.26552358]
[1742316044576,0.22361,81967.0,81966.0,0.12436]
[1742316044776,0.3456215,81967.0,81965.0,0.06118936]